bitfinex-derivatives/quotes_SOLF0:USTF0_20230402
["timestamp","ask_amount","ask_price","bid_price","bid_amount"]
[1680404061695,18.96,20.973,20.963,5.0]
[1680404061696,0.06458174,20.976,20.963,5.0]
[1680404061995,0.06458174,20.976,20.972,19.05]
[1680404062200,18.96,20.979,20.972,19.05]
[1680404062596,0.06326867,20.981,20.975,19.05]
[1680404062797,19.04,20.982,20.975,19.05]
[1680404062994,94.10132275,20.981,20.975,19.05]
[1680404063303,94.10132275,20.981,20.979,19.05]
[1680404063604,0.06793924,20.985,20.979,19.05]
[1680404063800,95.84443534,20.985,20.979,19.05]
[1680404064002,95.84443534,20.984,20.979,19.05]
[1680404064300,94.09233481,20.983,20.979,19.05]
[1680404064500,94.09233481,20.982,20.979,19.05]
[1680404064693,94.09233481,20.981,20.979,19.05]
[1680404064894,18.96,20.986,20.979,19.05]
[1680404065101,95.84475058,20.985,20.979,19.05]
[1680404065295,95.84475058,20.984,20.979,19.05]
[1680404065500,94.09264427,20.983,20.979,19.05]
[1680404065700,94.09264427,20.982,20.979,19.05]
[1680404065901,94.09264427,20.981,20.979,19.05]
[1680404066201,18.96,20.986,20.979,19.05]
[1680404066401,95.84509865,20.985,20.979,19.05]
[1680404066596,95.84509865,20.984,20.979,19.05]
[1680404066801,94.09298624,20.983,20.979,19.05]
[1680404066999,0.07071318,20.989,20.98,19.05]
[1680404067000,94.09298624,20.982,20.98,19.05]
[1680404067300,19.04,20.987,20.98,19.05]
[1680404067501,81.3031925,20.986,20.98,19.05]
[1680404067696,81.3031925,20.985,20.98,19.05]
[1680404067902,81.3031925,20.984,20.98,19.05]
[1680404068097,79.55107697,20.983,20.98,19.05]
[1680404068302,19.04,20.987,20.98,19.05]
[1680404068505,79.54259387,20.986,20.98,19.05]
[1680404069008,19.04,20.987,20.98,19.05]
[1680404069703,79.54276093,20.986,20.98,19.05]
[1680404070803,19.04,20.984,20.977,19.05]
[1680404071605,79.5528402,20.983,20.977,19.05]
[1680404077206,79.5528402,20.983,20.972,5.0]
[1680404077207,98.5128402,20.983,20.975,19.05]
[1680404077406,23.78,20.984,20.973,23.66]
[1680404077609,79.55541243,20.983,20.973,23.66]
[1680404102038,23.8,20.982,20.971,23.8]
[1680404103542,79.55812071,20.981,20.971,23.8]
[1680404107348,23.8,20.982,20.971,23.8]
[1680404108445,79.55808075,20.981,20.971,23.8]
[1680404109647,23.8,20.982,20.971,23.8]
[1680404116849,79.55701659,20.981,20.971,23.8]
[1680404120951,23.8,20.982,20.971,23.8]
[1680404122254,79.55528745,20.981,20.971,23.8]
[1680404123559,23.78,20.98,20.968,23.8]
[1680404123759,79.55528745,20.979,20.968,23.8]
[1680404127051,23.8,20.978,20.966,23.66]
[1680404127252,79.55528745,20.977,20.966,23.66]
[1680404133866,222.85528745,20.977,20.966,23.66]
[1680404134067,23.8,20.974,20.963,23.8]
[1680404134364,79.55528745,20.973,20.963,23.8]
[1680404136162,23.8,20.972,20.96,23.8]
[1680404137465,19.06,20.97,20.963,18.95]
[1680404166786,19.06,20.971,20.964,18.99]
[1680404166985,19.06,20.97,20.962,18.99]
[1680404171689,64.06837678,20.973,20.966,18.99]
[1680404175297,19.06,20.98,20.972,18.95]
[1680404175494,19.06,20.98,20.973,18.95]
[1680404204917,19.06,20.978,20.97,18.95]
[1680404217028,19.06,20.979,20.971,18.95]
[1680404226936,19.06,20.977,20.97,18.99]
[1680404228838,19.06,20.975,20.969,0.06959619]
[1680404229138,19.06,20.975,20.967,18.95]
[1680404242148,19.12466321,20.979,20.971,18.95]
[1680404242449,79.47430931,20.978,20.971,18.95]
[1680404247052,79.47430931,20.978,20.973,18.99]
[1680404247354,79.47430931,20.977,20.973,18.99]
[1680404247554,19.06,20.98,20.973,18.99]
[1680404247754,79.47563087,20.979,20.973,18.99]
[1680404257060,98.53563087,20.979,20.971,18.95]
[1680404257260,79.47563087,20.978,20.971,18.95]
[1680404273467,79.47563087,20.978,20.974,18.99]
[1680404273665,79.47563087,20.977,20.974,18.99]
[1680404273869,79.47563087,20.98,20.974,18.99]
[1680404274172,79.47245884,20.979,20.974,18.99]
[1680404274372,79.47245884,20.978,20.974,18.99]
[1680404274567,79.47245884,20.977,20.974,18.99]
[1680404274768,79.47245884,20.98,20.974,18.99]
[1680404275069,79.47278785,20.979,20.974,18.99]
[1680404275266,79.47278785,20.98,20.974,18.99]
[1680404277070,79.47278785,20.98,20.975,18.99]
[1680404277267,79.53456196,20.982,20.975,18.99]
[1680404277468,79.47278785,20.981,20.975,18.99]
[1680404277664,79.53456196,20.982,20.975,18.99]
[1680404278470,19.06,20.98,20.973,18.99]
[1680404278671,79.47278785,20.979,20.973,18.99]
[1680404287084,98.53278785,20.979,20.972,18.99]
[1680404287485,79.47278785,20.978,20.972,18.99]
[1680404289786,79.47278785,20.978,20.975,18.99]
[1680404290084,79.47278785,20.977,20.975,18.99]
[1680404290285,19.12177411,20.982,20.975,18.99]
[1680404290484,79.47341603,20.981,20.975,18.99]
[1680404293987,19.06,20.979,20.972,18.95]
[1680404294186,79.47341603,20.978,20.972,18.95]
[1680404298088,19.06,20.976,20.968,19.0162288]
[1680404298294,79.47045367,20.975,20.968,19.0162288]
[1680404306097,19.06,20.973,20.968,0.0662288]
[1680404306298,19.06,20.973,20.965,23.95]
[1680404306594,19.06,20.973,20.965,18.95]
[1680404306897,79.44629673,20.972,20.965,18.95]
[1680404307098,19.06,20.97,20.963,24.06095772]
[1680404307397,19.06,20.97,20.963,19.06095772]
[1680404312703,19.06,20.967,20.963,0.07095772]
[1680404312899,19.06,20.967,20.96,18.99]
[1680404317004,19.06,20.966,20.96,18.99]
[1680404317404,23.84,20.968,20.958,0.06574749]
[1680404317604,212.8613,20.968,20.958,0.06574749]
[1680404317905,69.5613,20.968,20.958,0.06574749]
[1680404325407,0.17398361,20.958,20.954,23.71]
[1680404325606,0.17398361,20.958,20.953,5.0]
[1680404326205,0.17398361,20.958,20.952,5.0]
[1680404328812,0.17398361,20.958,20.951,23.84]
[1680404342316,0.17398361,20.958,20.952,5.0]
[1680404354233,0.17398361,20.958,20.956,23.84]
[1680404373747,0.17398361,20.958,20.957,5.0]
[1680404376548,0.06273523,20.965,20.958,0.17]
[1680404376746,23.79,20.972,20.961,23.65]
[1680404376747,0.06502184,20.969,20.961,23.65]
[1680404377347,0.06502184,20.969,20.958,0.17]
[1680404377547,19.12502184,20.969,20.962,19.06]
[1680404385053,19.12502184,20.969,20.963,5.0]
[1680404385353,19.06,20.969,20.963,5.0]
[1680404386953,19.01,20.971,20.964,18.93]
[1680404396965,19.06,20.97,20.962,19.06]
[1680404398567,19.01,20.967,20.959,18.93]
[1680404404965,19.01,20.963,20.955,18.93]
[1680404407174,0.06237906,20.966,20.951,18.93]
[1680404407175,19.01,20.959,20.951,18.93]
[1680404407371,19.01,20.96,20.951,18.93]
[1680404412175,19.01,20.956,20.949,19.06]
[1680404412478,23.82,20.958,20.947,23.86]
[1680404415375,23.82,20.955,20.944,23.86]
[1680404415584,23.84,20.951,20.941,51.6173]
[1680404416777,23.84,20.951,20.941,46.6173]
[1680404416981,23.86,20.952,20.941,70.4773]
[1680404417774,23.86,20.952,20.941,23.86]
[1680404419483,0.07042408,20.953,20.944,23.7]
[1680404420284,0.07042408,20.953,20.945,48.3411]
[1680404420583,0.07042408,20.953,20.948,23.86]
[1680404420784,0.06813281,20.958,20.948,23.86]
[1680404423687,23.86,20.956,20.945,48.3411]
[1680404424483,23.86,20.956,20.946,5.0]
[1680404427087,45.5059,20.957,20.946,28.86]
[1680404427387,45.5059,20.957,20.946,23.86]
[1680404429986,188.8059,20.957,20.946,23.86]
[1680404430389,23.86,20.954,20.943,23.86]
[1680404433188,23.86,20.954,20.944,5.0]
[1680404436490,69.3459,20.957,20.946,23.86]
[1680404444793,69.3459,20.957,20.942,5.0]
[1680404444794,212.6459,20.957,20.942,5.0]
[1680404444997,23.84,20.953,20.942,23.86]
[1680404446997,23.86,20.952,20.941,23.7]
[1680404453406,23.86,20.948,20.937,23.7]
[1680404454408,23.73,20.945,20.932,5.0]
[1680404454609,23.73,20.945,20.934,23.7]
[1680404457009,23.84,20.943,20.932,5.0]
[1680404458910,23.84,20.943,20.931,67.7882]
[1680404461711,23.84,20.943,20.932,5.0]
[1680404467221,23.82,20.944,20.933,23.86]
[1680404473725,0.06120615,20.946,20.936,23.86]
[1680404474223,0.06120615,20.946,20.937,5.0]
[1680404480232,0.06120615,20.946,20.939,23.86]
[1680404480428,0.06120615,20.946,20.942,23.86]
[1680404480732,0.06186693,20.951,20.942,23.86]
[1680404482028,23.73,20.95,20.939,23.86]
[1680404487040,23.73,20.95,20.94,23.7]
[1680404490640,23.73,20.95,20.941,5.0]
[1680404496943,0.06186693,20.951,20.941,5.0]
[1680404497643,0.06186693,20.951,20.942,23.7]
[1680404501146,0.06186693,20.951,20.943,5.0]
[1680404506144,0.06186693,20.951,20.942,70.8374]
[1680404506352,0.06186693,20.951,20.943,5.0]
[1680404510349,0.06186693,20.951,20.942,70.8374]
[1680404510549,0.06186693,20.951,20.943,5.0]
[1680404510750,0.06186693,20.951,20.942,70.8374]
[1680404511049,0.06186693,20.951,20.943,5.0]
[1680404511854,0.06186693,20.951,20.942,70.8374]
[1680404512449,0.06186693,20.951,20.943,5.0]
[1680404513852,0.06186693,20.951,20.942,70.8374]
[1680404514054,0.06186693,20.951,20.943,5.0]
[1680404517055,0.06186693,20.951,20.944,23.86]
[1680404522358,0.06186693,20.951,20.943,5.0]
[1680404522554,0.06186693,20.951,20.945,19.1]
[1680404522754,79.55394229,20.952,20.945,19.1]
[1680404527762,98.61394229,20.952,20.945,19.1]
[1680404527959,19.06,20.952,20.945,19.1]
[1680404537066,19.06,20.951,20.944,19.1]
[1680404541672,79.6493422,20.95,20.944,19.1]
[1680404543768,19.06,20.945,20.937,19.04]
[1680404545274,19.1,20.947,20.94,19.1]
[1680404546974,0.0665252,20.948,20.942,19.04]
[1680404547177,19.06,20.95,20.942,19.04]
[1680404547178,79.64875557,20.949,20.942,19.04]
[1680404547375,79.64875557,20.949,20.941,23.88]
[1680404547569,79.64875557,20.948,20.941,23.88]
[1680404547773,79.64875557,20.947,20.941,23.88]
[1680404547973,79.64875557,20.946,20.941,23.88]
[1680404548169,23.94207708,20.952,20.941,23.88]
[1680404548376,79.64822501,20.951,20.941,23.88]
[1680404550578,79.64822501,20.951,20.943,23.88]
[1680404550776,79.64822501,20.95,20.943,23.88]
[1680404550978,79.64822501,20.949,20.944,5.0]
[1680404551178,79.64822501,20.948,20.944,5.0]
[1680404551376,0.06207708,20.952,20.944,5.0]
[1680404551575,0.06207708,20.952,20.944,49.1385]
[1680404556979,0.06207708,20.952,20.945,23.84]
[1680404557177,79.70978356,20.952,20.945,23.84]
[1680404557377,79.64770648,20.951,20.945,23.84]
[1680404557576,79.64770648,20.95,20.945,23.84]
[1680404557776,79.64770648,20.949,20.945,23.84]
[1680404558077,79.64770648,20.948,20.945,23.84]
[1680404558276,79.64770648,20.947,20.945,23.84]
[1680404558471,79.64770648,20.946,20.945,23.84]
[1680404558876,0.06207708,20.952,20.945,23.84]
[1680404559474,79.70978356,20.952,20.945,23.84]
[1680404559779,79.64770648,20.951,20.945,23.84]
[1680404559980,79.64770648,20.95,20.945,23.84]
[1680404560178,79.64770648,20.949,20.945,23.84]
[1680404560376,79.64770648,20.948,20.945,23.84]
[1680404560572,79.64770648,20.947,20.945,23.84]
[1680404560772,79.64770648,20.946,20.945,23.84]
[1680404561378,0.06207708,20.952,20.945,23.84]
[1680404561979,79.70978356,20.952,20.945,23.84]
[1680404562178,79.64770648,20.951,20.945,23.84]
[1680404562379,79.64770648,20.95,20.945,23.84]
[1680404562574,79.64770648,20.949,20.945,23.84]
[1680404562780,79.64770648,20.948,20.945,23.84]
[1680404563076,79.64770648,20.947,20.945,23.84]
[1680404563274,79.64770648,20.946,20.945,23.84]
[1680404563780,0.06207708,20.952,20.945,23.84]
[1680404564581,79.70978356,20.952,20.945,23.84]
[1680404564781,79.64770648,20.951,20.945,23.84]
[1680404564976,79.64770648,20.95,20.945,23.84]
[1680404565282,79.64770648,20.949,20.945,23.84]
[1680404565482,79.64770648,20.948,20.945,23.84]
[1680404565675,0.06207708,20.952,20.945,23.84]
[1680404566382,79.7163903,20.952,20.945,23.84]
[1680404566583,79.65431322,20.951,20.945,23.84]
[1680404566782,79.65431322,20.95,20.945,23.84]
[1680404567082,79.65431322,20.949,20.945,23.84]
[1680404567382,79.65431322,20.948,20.945,23.84]
[1680404567581,0.06207708,20.952,20.945,23.84]
[1680404568382,79.71815799,20.952,20.945,23.84]
[1680404568582,79.65608091,20.951,20.945,23.84]
[1680404568780,79.65608091,20.95,20.945,23.84]
[1680404568980,79.65608091,20.949,20.945,23.84]
[1680404569184,79.65608091,20.948,20.945,23.84]
[1680404569384,0.06207708,20.952,20.945,23.84]
[1680404570185,79.71773339,20.952,20.945,23.84]
[1680404570487,79.65565631,20.951,20.945,23.84]
[1680404570685,0.06207708,20.952,20.945,23.84]
[1680404571283,79.71773339,20.952,20.945,23.84]
[1680404571484,79.65565631,20.951,20.945,23.84]
[1680404571685,79.65565631,20.95,20.945,23.84]
[1680404571984,79.65565631,20.949,20.945,23.84]
[1680404572184,79.65565631,20.948,20.945,23.84]
[1680404572383,0.06207708,20.952,20.945,23.84]
[1680404573382,79.71829483,20.952,20.945,23.84]
[1680404573582,79.65621775,20.951,20.945,23.84]
[1680404573783,0.06207708,20.952,20.945,23.84]
[1680404574788,79.71829483,20.952,20.945,23.84]
[1680404574986,79.65621775,20.951,20.945,23.84]
[1680404575188,79.65621775,20.95,20.945,23.84]
[1680404575386,79.65621775,20.949,20.945,23.84]
[1680404575687,79.65621775,20.948,20.945,23.84]
[1680404575886,0.06207708,20.952,20.945,23.84]
[1680404576688,79.71829483,20.952,20.945,23.84]
[1680404576890,79.65621775,20.951,20.945,23.84]
[1680404577089,79.65621775,20.95,20.945,23.84]
[1680404577389,79.65621775,20.949,20.945,23.84]
[1680404577590,79.65621775,20.948,20.945,23.84]
[1680404577889,79.65621775,20.947,20.945,23.84]
[1680404578191,79.65621775,20.946,20.945,23.84]
[1680404579190,0.06207708,20.952,20.945,23.84]
[1680404581096,0.06207708,20.952,20.946,5.0]
[1680404581293,79.65621775,20.953,20.946,5.0]
[1680404581489,79.65621775,20.955,20.946,5.0]
[1680404581698,79.65621775,20.954,20.946,5.0]
[1680404581896,79.65621775,20.953,20.946,5.0]
[1680404582090,79.65621775,20.955,20.946,5.0]
[1680404582295,79.65621775,20.954,20.946,5.0]
[1680404582596,79.65621775,20.953,20.946,5.0]
[1680404582896,79.65621775,20.952,20.946,5.0]
[1680404583093,79.65621775,20.955,20.946,5.0]
[1680404583299,79.65621775,20.954,20.946,5.0]
[1680404583495,79.65621775,20.955,20.946,5.0]
[1680404583799,79.65621775,20.954,20.945,23.84]
[1680404583994,79.65621775,20.955,20.945,23.84]
[1680404584300,81.41081444,20.954,20.945,23.84]
[1680404584490,79.65621775,20.953,20.945,23.84]
[1680404584694,79.65621775,20.955,20.945,23.84]
[1680404584895,81.41081869,20.954,20.945,23.84]
[1680404585096,79.65621775,20.953,20.945,23.84]
[1680404585399,79.65621775,20.952,20.945,23.84]
[1680404585599,79.65621775,20.955,20.945,23.84]
[1680404585798,81.4108225,20.954,20.945,23.84]
[1680404586000,79.65621775,20.953,20.945,23.84]
[1680404586200,79.65621775,20.955,20.945,23.84]
[1680404586499,81.41082274,20.954,20.945,23.84]
[1680404586699,79.65621775,20.953,20.945,23.84]
[1680404586900,79.65621775,20.955,20.945,23.84]
[1680404587102,105.29083119,20.954,20.942,28.83]
[1680404587295,79.65621775,20.953,20.942,28.83]
[1680404591499,79.65621775,20.953,20.942,23.83]
[1680404593398,196.95039399,20.953,20.942,23.83]
[1680404593701,23.88,20.954,20.942,23.83]
[1680404593702,79.65621775,20.952,20.942,23.83]
[1680404593901,79.65621775,20.951,20.942,23.83]
[1680404594100,79.65621775,20.953,20.942,23.83]
[1680404609311,79.65621775,20.953,20.943,5.0]
[1680404612615,98.75621775,20.953,20.945,19.1]
[1680404612911,79.65621775,20.952,20.945,19.1]
[1680404626618,19.1,20.953,20.945,19.1]
[1680404626619,79.65621775,20.951,20.945,19.1]
[1680404626820,79.65621775,20.952,20.945,19.1]
[1680404627014,19.1,20.951,20.944,18.95]
[1680404627219,79.65621775,20.95,20.944,18.95]
[1680404636926,79.65621775,20.95,20.945,18.95]
[1680404641626,79.65621775,20.95,20.948,18.95]
[1680404642521,79.65621775,20.954,20.948,18.95]
[1680404647134,98.75621775,20.954,20.947,19.1]
[1680404647335,79.65621775,20.953,20.947,19.1]
[1680404656947,79.65621775,20.953,20.948,19.1]
[1680404657146,79.65621775,20.952,20.948,19.1]
[1680404657346,79.65621775,20.951,20.948,19.1]
[1680404657548,79.65621775,20.954,20.948,19.1]
[1680404657750,79.65621775,20.953,20.948,19.1]
[1680404657949,79.65621775,20.954,20.948,19.1]
[1680404666557,79.65621775,20.954,20.951,19.1]
[1680404666754,0.06956289,20.956,20.951,19.1]
[1680404666955,79.65585269,20.957,20.951,19.1]
[1680404667154,79.65585269,20.956,20.951,19.1]
[1680404667359,19.1,20.959,20.951,19.1]
[1680404667658,79.65586362,20.958,20.951,19.1]
[1680404671359,79.65586362,20.958,20.954,19.1]
[1680404671559,19.17142943,20.961,20.954,19.1]
[1680404671754,79.6540105,20.96,20.954,19.1]
[1680404675260,79.6540105,20.96,20.952,5.0]
[1680404675461,0.07142943,20.961,20.954,18.95]
[1680404675955,79.72070879,20.961,20.954,18.95]
[1680404677058,79.72070879,20.961,20.956,19.1]
[1680404677259,19.1,20.963,20.956,19.1]
[1680404677461,65.20128395,20.962,20.956,19.1]
[1680404685666,65.20128395,20.962,20.957,5.0]
[1680404686369,65.20128395,20.962,20.956,19.1]
[1680404697176,19.1,20.964,20.956,19.1]
[1680404697376,66.95882571,20.963,20.956,19.1]
[1680404697677,66.95882571,20.962,20.956,19.1]
[1680404697875,19.1,20.964,20.956,19.1]
[1680404698175,66.9588424,20.963,20.956,19.1]
[1680404698369,66.9588424,20.962,20.956,19.1]
[1680404698577,19.1,20.964,20.956,19.1]
[1680404698777,66.95873106,20.963,20.956,19.1]
[1680404698977,66.95873106,20.962,20.956,19.1]
[1680404699171,19.1,20.964,20.956,19.1]
[1680404699375,66.95874227,20.963,20.956,19.1]
[1680404699677,66.95874227,20.962,20.957,18.95]
[1680404699878,19.1,20.964,20.957,18.95]
[1680404700078,66.95874155,20.963,20.957,18.95]
[1680404700272,66.95874155,20.962,20.957,18.95]
[1680404700485,19.1,20.964,20.957,18.95]
[1680404700776,66.95861269,20.963,20.957,18.95]
[1680404700971,19.1,20.964,20.957,18.95]
[1680404700972,66.95861269,20.962,20.957,18.95]
[1680404701176,19.1,20.964,20.957,18.95]
[1680404701378,66.9586492,20.963,20.957,18.95]
[1680404701579,66.9586492,20.962,20.957,18.95]
[1680404701880,19.1,20.964,20.957,18.95]
[1680404702077,66.95866996,20.963,20.957,18.95]
[1680404702280,66.95866996,20.962,20.957,18.95]
[1680404702476,19.1,20.964,20.957,18.95]
[1680404702672,66.95868995,20.963,20.957,18.95]
[1680404702976,66.95868995,20.962,20.957,18.95]
[1680404703279,19.1,20.964,20.957,18.95]
[1680404703480,66.95708076,20.963,20.957,18.95]
[1680404703679,65.20313944,20.962,20.957,18.95]
[1680404703878,19.1,20.964,20.957,18.95]
[1680404704080,66.9572905,20.963,20.957,18.95]
[1680404704279,65.20334534,20.962,20.957,18.95]
[1680404704481,19.1,20.964,20.957,18.95]
[1680404704781,66.95682218,20.963,20.957,18.95]
[1680404704985,65.20288545,20.962,20.957,18.95]
[1680404705175,65.20288545,20.963,20.957,18.95]
[1680404705380,65.20305715,20.962,20.957,18.95]
[1680404705581,19.1,20.964,20.957,18.95]
[1680404705783,66.9570652,20.963,20.957,18.95]
[1680404706084,65.20312415,20.962,20.957,18.95]
[1680404706385,19.1,20.964,20.957,18.95]
[1680404706684,66.95719734,20.963,20.957,18.95]
[1680404706884,65.20325392,20.962,20.957,18.95]
[1680404707085,19.1,20.964,20.957,18.95]
[1680404707384,66.95729498,20.963,20.957,18.95]
[1680404707583,65.20334988,20.962,20.957,18.95]
[1680404707777,65.20334988,20.963,20.957,18.95]
[1680404708185,19.1,20.961,20.954,19.1]
[1680404709083,19.1,20.958,20.95,18.95]
[1680404713696,0.06263594,20.961,20.941,18.95]
[1680404713697,19.1,20.951,20.941,18.95]
[1680404713895,19.1,20.943,20.935,18.95]
[1680404714694,19.1,20.945,20.938,18.95]
[1680404717097,0.07009967,20.946,20.939,18.95]
[1680404717499,0.07009967,20.946,20.937,23.88]
[1680404724308,23.91009967,20.946,20.934,23.88]
[1680404726809,167.21009967,20.946,20.934,23.88]
[1680404727108,23.84,20.944,20.934,23.88]
[1680404734710,10.0,20.943,20.934,23.88]
[1680404735012,23.84,20.941,20.93,23.88]
[1680404737117,23.84,20.943,20.932,23.88]
[1680404742215,0.07009967,20.946,20.931,10.0]
[1680404742216,0.07009967,20.946,20.936,23.88]
[1680404742415,0.07009967,20.946,20.939,23.71]
[1680404743819,0.07009967,20.946,20.943,23.88]
[1680404744022,0.06056109,20.952,20.943,23.88]
[1680404748831,0.06056109,20.952,20.944,10.0]
[1680404750032,0.06056109,20.952,20.944,58.6895]
[1680404756934,0.06056109,20.952,20.944,82.5695]
[1680404766934,0.06056109,20.952,20.946,23.88]
[1680404767137,1.82185498,20.956,20.946,23.88]
[1680404770642,0.06744849,20.956,20.946,23.88]
[1680404772746,65.28681651,20.956,20.946,23.88]
[1680404775645,0.06744849,20.956,20.946,23.88]
[1680404778944,65.28613764,20.956,20.946,23.88]
[1680404782351,65.28613764,20.956,20.944,58.6895]
[1680404782547,18.97,20.955,20.948,19.04]
[1680404783148,65.21876724,20.954,20.948,19.04]
[1680404787052,84.18876724,20.954,20.947,19.04]
[1680404787354,65.21876724,20.953,20.947,19.04]
[1680404790755,18.97,20.954,20.947,19.04]
[1680404798459,65.2294115,20.953,20.947,19.04]
[1680404805162,19.09,20.952,20.944,67.7795]
[1680404805463,65.2294115,20.951,20.944,67.7795]
[1680404816975,84.1994115,20.951,20.944,48.6895]
[1680404817275,65.2294115,20.95,20.944,48.6895]
[1680404817773,65.2294115,20.95,20.943,19.04]
[1680404826575,65.2294115,20.95,20.944,10.0]
[1680404826980,65.2294115,20.95,20.944,29.09]
[1680404827185,18.97,20.952,20.944,29.09]
[1680404827186,65.2294115,20.951,20.944,29.09]
[1680404827374,65.2294115,20.95,20.944,29.09]
[1680404827682,65.2294115,20.949,20.944,29.09]
[1680404827882,18.97,20.952,20.944,29.09]
[1680404828082,65.24354065,20.951,20.944,29.09]
[1680404832085,65.24354065,20.951,20.944,19.09]
[1680404857004,84.21354065,20.951,20.943,19.04]
[1680404857304,65.24354065,20.95,20.943,19.04]
[1680404867505,0.06744849,20.956,20.949,19.04]
[1680404867700,0.06583964,20.96,20.955,19.04]
[1680404867904,66.8554,20.965,20.956,19.09]
[1680404867905,66.91597155,20.965,20.956,19.09]
[1680404868208,10.0,20.964,20.956,19.09]
[1680404868407,66.91597155,20.965,20.956,19.09]
[1680404872711,66.91597155,20.965,20.952,10.0]
[1680404872712,0.06057155,20.965,20.96,19.04]
[1680404872912,19.09,20.967,20.96,19.04]
[1680404886323,0.06501166,20.97,20.955,10.0]
[1680404886324,19.09,20.963,20.956,19.09]
[1680404887030,10.0,20.969,20.957,19.04]
[1680404887031,18.97,20.964,20.957,19.04]
[1680404887223,1.75379329,20.963,20.957,19.04]
[1680404889333,18.97,20.964,20.957,19.04]
[1680404899544,1.75378903,20.963,20.957,19.04]
[1680404904047,18.97,20.964,20.957,19.04]
[1680404906951,18.97,20.967,20.96,19.09]
[1680404907152,1.75355316,20.966,20.96,19.09]
[1680404926870,42.16246365,20.965,20.96,19.09]
[1680404927071,42.16246365,20.965,20.961,19.09]
[1680404927271,19.09,20.968,20.961,19.09]
[1680404927471,43.91600394,20.967,20.961,19.09]
[1680404927672,43.91600394,20.966,20.961,19.09]
[1680404927971,42.16247569,20.965,20.961,19.09]
[1680404928171,42.16247569,20.967,20.961,19.09]
[1680404928471,43.91504149,20.966,20.961,19.09]
[1680404928671,42.16151252,20.965,20.961,19.09]
[1680404928970,42.16151252,20.964,20.961,19.09]
[1680404929172,19.09,20.968,20.961,19.09]
[1680404929372,43.91541257,20.967,20.961,19.09]
[1680404929572,43.91541257,20.966,20.961,19.09]
[1680404929775,42.16189499,20.965,20.961,19.09]
[1680404929973,42.16189499,20.964,20.961,19.09]
[1680404930274,19.09,20.968,20.961,19.09]
[1680404930575,43.91560239,20.967,20.961,19.09]
[1680404930774,19.09,20.968,20.961,19.09]
[1680404930775,43.91560239,20.966,20.961,19.09]
[1680404930974,42.16208131,20.965,20.961,19.09]
[1680404931171,42.16208131,20.964,20.961,19.09]
[1680404931372,42.16208131,20.963,20.961,19.09]
[1680404931676,19.09,20.968,20.961,19.09]
[1680404931870,43.91576138,20.967,20.961,19.09]
[1680404932173,43.91576138,20.966,20.961,19.09]
[1680404932373,42.1622375,20.965,20.961,19.09]
[1680404932574,42.1622375,20.964,20.961,19.09]
[1680404932772,42.1622375,20.963,20.961,19.09]
[1680404932972,42.1622375,20.967,20.961,19.09]
[1680404933172,43.9157631,20.966,20.961,19.09]
[1680404933374,19.09,20.968,20.961,19.09]